bitfinex/quotes_ETHUSD_20250319
["timestamp","ask_amount","ask_price","bid_price","bid_amount"]
[1742394565007,9.70156675,2029.5,2029.2,4.92787]
[1742394565392,9.70156675,2029.5,2029.3,4.92779]
[1742394565828,5.588,2029.5,2029.4,4.92756]
[1742394566180,5.588,2029.5,2029.3,4.92775]
[1742394566386,5.588,2029.5,2029.3,4.92764]
[1742394566627,5.588,2029.5,2029.4,4.92756]
[1742394567276,5.588,2029.5,2029.3,4.92764]
[1742394567683,5.588,2029.5,2029.4,4.92756]
[1742394568091,5.588,2029.5,2029.3,4.92777]
[1742394568626,5.588,2029.5,2029.4,4.92756]
[1742394568927,5.588,2029.5,2029.3,4.92775]
[1742394569093,5.588,2029.5,2029.3,4.9277]
[1742394569522,9.70156675,2029.5,2029.2,4.92803]
[1742394569750,10.62552,2029.1,2028.7,4.92917]
[1742394569919,7.11356675,2028.8,2028.7,4.92925]
[1742394570246,3.0,2028.8,2028.7,4.92925]
[1742394570534,8.587,2028.8,2028.7,4.92925]
[1742394571029,8.587,2028.8,2028.7,4.92926]
[1742394571392,8.587,2028.8,2028.6,9.89389712]
[1742394571743,12.70056675,2028.8,2028.6,4.96452712]
[1742394571896,12.70056675,2028.8,2028.6,0.03519712]
[1742394571897,3.0,2028.7,2028.6,0.03519712]
[1742394572237,3.0,2028.7,2028.6,1e-08]
[1742394572238,9.30667921,2028.7,2028.6,1e-08]
[1742394572539,0.7641,2028.5,2028.2,4.93027]
[1742394572746,3.0,2028.4,2028.1,5.69224]
[1742394572952,4.87766675,2028.5,2028.1,5.69224]
[1742394572953,8.587,2028.3,2028.2,4.93045]
[1742394573320,7.711024,2028.2,2028.0,5.0533824]
[1742394573653,7.11356675,2028.1,2028.0,0.1225524]
[1742394573849,7.94036675,2028.1,2028.0,0.1225524]
[1742394574209,12.87108675,2028.1,2028.0,0.1225524]
[1742394574412,7.94036675,2028.1,2028.0,0.1225524]
[1742394574748,12.87108675,2028.1,2028.0,0.1225524]
[1742394574955,20.15103062,2028.1,2028.0,0.1225524]
[1742394575154,16.48891614,2028.1,2028.0,0.1225524]
[1742394575322,16.43821614,2028.1,2028.0,0.1225524]
[1742394575533,21.00323516,2028.1,2028.0,0.1225524]
[1742394575722,16.80929115,2028.1,2028.0,0.1225524]
[1742394575921,21.37431017,2028.1,2028.0,0.1225524]
[1742394576121,3.0,2027.3,2027.0,4.93319]
[1742394576326,5.587,2027.2,2027.0,4.93319]
[1742394576761,4.56501902,2027.1,2027.0,4.93319]
[1742394576927,7.56501902,2027.1,2027.0,4.93319]
[1742394577261,8.587,2027.1,2027.0,4.93339]
[1742394577663,5.587,2027.1,2027.0,4.93339]
[1742394579074,10.15201902,2027.8,2027.7,4.93169]
[1742394579433,13.15201902,2027.8,2027.7,4.93169]
[1742394580446,13.15201902,2027.8,2027.6,4.93185]
[1742394580447,5.588,2028.2,2028.1,4.93072]
[1742394580659,4.492312,2028.1,2028.0,4.93096]
[1742394580839,7.56501902,2028.1,2028.0,4.93096]
[1742394582978,3.0,2028.1,2028.0,4.93096]
[1742394583643,4.56501902,2028.3,2028.0,3.0]
[1742394583843,4.56501902,2029.0,2028.3,0.753]
[1742394584081,4.56501902,2028.4,2028.3,0.753]
[1742394584266,4.56501902,2028.4,2028.1,4.93063]
[1742394584603,3.0,2028.3,2028.2,4.93048]
[1742394585073,7.56501902,2028.3,2028.2,4.93048]
[1742394585894,7.56501902,2028.3,2028.1,4.93072]
[1742394586180,8.38665164,2028.3,2027.8,0.83]
[1742394586401,4.56501902,2028.1,2027.9,4.93118]
[1742394586557,10.15201902,2028.0,2027.9,4.93118]
[1742394587067,12.86244,2027.9,2027.5,4.93207]
[1742394587275,4.56501902,2027.8,2027.7,4.93169]
[1742394587665,4.56501902,2027.8,2027.6,4.93193]
[1742394587863,4.56501902,2027.8,2027.6,4.93183]
[1742394588354,5.34751902,2027.8,2027.4,4.93229]
[1742394588552,4.56501902,2027.6,2027.5,4.93218]
[1742394588788,10.15101902,2027.6,2027.4,4.93221]
[1742394589181,13.15101902,2027.6,2027.1,10.65625]
[1742394589381,13.15101902,2027.6,2027.1,0.7903]
[1742394589682,13.15101902,2027.6,2027.3,4.93259]
[1742394589683,4.56501902,2027.4,2027.3,4.93259]
[1742394590294,8.586,2027.6,2027.5,4.93218]
[1742394590295,13.15101902,2027.6,2027.5,4.93218]
[1742394591283,8.586,2027.6,2027.5,4.93218]
[1742394593889,3.0,2027.6,2027.5,4.93218]
[1742394594169,8.586,2027.6,2027.5,4.93218]
[1742394595203,8.585,2027.6,2027.5,4.93218]
[1742394597103,1.175437,2028.2,2027.9,4.9312]
[1742394597317,1.175437,2028.2,2027.5,0.769]
[1742394597318,0.8031,2028.2,2028.1,4.93072]
[1742394597470,5.32661902,2028.5,2028.2,4.93048]
[1742394597667,5.585,2028.4,2028.0,4.93095]
[1742394597882,4.56501902,2028.3,2028.1,4.9307]
[1742394598081,3.0,2028.2,2027.9,4.9311]
[1742394598288,4.56501902,2028.3,2028.0,4.93087]
[1742394598485,4.56501902,2028.3,2028.0,4.93079]
[1742394598712,3.0,2028.2,2028.0,4.93079]
[1742394598905,3.0,2028.2,2027.9,4.93107]
[1742394599083,3.0,2028.2,2027.7,4.93169]
[1742394599285,5.585,2028.1,2028.0,4.93096]
[1742394599599,5.585,2028.1,2027.9,4.93105]
[1742394599801,3.0,2028.0,2027.5,0.8138]
[1742394599980,3.0,2028.0,2027.8,4.93125]
[1742394600177,9.37307492,2028.0,2027.8,4.93142]
[1742394600499,3.7828,2028.0,2027.8,4.93144]
[1742394600804,3.0,2028.0,2027.9,4.9312]
[1742394601007,3.0,2028.0,2027.8,4.93142]
[1742394601212,6.162715,2027.7,2027.6,4.93184]
[1742394601505,3.0,2027.6,2027.3,4.93265]
[1742394601708,3.0,2027.6,2027.4,4.93228]
[1742394601895,0.7521,2028.0,2027.7,4.93169]
[1742394601896,5.584,2028.0,2027.7,4.93169]
[1742394602096,5.584,2028.0,2027.9,4.9312]
[1742394603582,3.0,2028.3,2028.2,9.86081]
[1742394603810,3.0,2028.3,2028.2,4.93033]
[1742394603811,8.583,2028.3,2028.2,4.93033]
[1742394605006,4.56501902,2028.7,2028.2,4.93033]
[1742394605007,17.052,2028.9,2028.3,4.93023]
[1742394605210,10.51214,2028.8,2028.3,9.86009]
[1742394605412,10.14801902,2028.8,2028.5,4.92961]
[1742394605617,3.0,2028.7,2028.6,4.92927]
[1742394606214,4.92688,2029.7,2028.7,0.7865]
[1742394606215,4.56501902,2029.2,2028.7,0.7865]
[1742394606387,10.14701902,2029.1,2028.7,0.7865]
[1742394606583,4.92916,2028.8,2028.4,5.71649]
[1742394606789,10.14701902,2028.7,2028.3,4.93021]
[1742394606989,5.582,2028.7,2028.5,4.92971]
[1742394607206,5.582,2028.7,2028.6,4.9295]
[1742394607407,5.582,2028.7,2028.5,4.9297]
[1742394607619,4.56501902,2028.6,2028.3,4.93021]
[1742394607913,4.56501902,2028.6,2028.4,4.92993]
[1742394608315,3.0,2028.6,2028.3,4.93022]
[1742394608522,3.0,2028.6,2028.4,4.92986]
[1742394608821,3.0,2028.7,2028.5,4.92975]
[1742394609019,8.582,2028.6,2028.5,4.92975]
[1742394609224,5.582,2028.6,2028.4,4.92998]
[1742394609423,5.582,2028.6,2028.3,4.93023]
[1742394609596,3.0,2028.4,2028.2,4.93042]
[1742394609917,3.0,2028.4,2028.2,4.93031]
[1742394610220,3.0,2028.4,2027.9,5.89954895]
[1742394610221,4.56501902,2028.3,2027.9,5.89954895]
[1742394610422,12.49597902,2028.0,2027.9,0.96842895]
[1742394610637,13.74557692,2028.0,2027.9,0.96842895]
[1742394610790,8.81461692,2028.0,2027.9,0.96842895]
[1742394610990,3.0,2027.9,2027.5,4.93199]
[1742394611190,3.0,2027.7,2027.4,4.93231]
[1742394611429,3.0,2027.3,2026.8,0.7919]
[1742394611740,5.58,2027.2,2027.1,4.93315]
[1742394612028,3.0,2027.1,2026.9,4.9336]
[1742394612215,9.37279692,2027.1,2026.6,5.72615]
[1742394612527,4.56501902,2026.9,2026.7,4.93404]
[1742394612689,5.58,2026.8,2026.7,4.93404]
[1742394615227,5.58,2026.8,2026.6,4.93416]
[1742394615527,5.58,2026.8,2026.7,4.93412]
[1742394616640,0.7509,2027.6,2026.8,0.8206]
[1742394616826,5.58,2027.6,2027.5,4.93218]
[1742394617031,5.58,2027.6,2027.4,4.93225]
[1742394617246,5.58,2027.6,2027.5,4.93218]
[1742394617528,10.24614902,2028.3,2028.0,4.93093]
[1742394617702,5.58,2028.2,2028.0,4.93079]
[1742394617905,3.0,2028.1,2028.0,4.93079]
[1742394618107,5.30383287,2028.5,2028.1,4.93072]
[1742394618307,5.58,2028.4,2028.3,4.93019]
[1742394618512,8.58,2028.4,2028.3,4.93019]
[1742394618736,3.0,2028.3,2028.2,9.86075]
[1742394619232,5.58,2028.4,2028.1,5.71887]
[1742394619402,5.58,2028.4,2027.5,4.93218]
[1742394619403,4.617124,2028.1,2027.8,4.93123]
[1742394619600,7.93125,2027.9,2027.5,4.93214]
[1742394619834,4.56501902,2027.8,2027.6,4.93185]
[1742394620332,8.68711,2027.7,2027.2,4.93289]
[1742394620546,4.56501902,2027.3,2027.1,4.93302]
[1742394620704,4.56501902,2027.3,2027.1,4.93315]
[1742394620705,8.58,2027.2,2027.1,4.93315]
[1742394621234,3.0,2027.0,2026.7,4.9339]
[1742394621550,3.7578,2027.1,2026.7,4.934]
[1742394621713,3.7578,2027.1,2026.3,5.72632]
[1742394621714,3.7578,2027.1,2026.3,0.7914]
[1742394622035,3.7578,2027.1,2026.9,4.93351]
[1742394622260,4.93349,2027.0,2026.6,4.93422]
[1742394622462,7.93349,2027.0,2026.6,4.93422]
[1742394622736,7.93344,2027.0,2026.6,4.93434]
[1742394622955,7.93344,2027.0,2026.5,4.93452]
[1742394622956,4.934,2026.8,2026.4,4.93476]
[1742394623167,5.72616,2026.3,2026.0,5.1320286]
[1742394623329,5.58,2026.2,2026.0,5.1319886]
[1742394623652,0.7622,2026.9,2026.2,4.93534]
[1742394623952,3.0,2026.7,2026.6,4.93412]
[1742394624316,8.58,2026.8,2026.7,4.93412]
[1742394625143,13.51397,2026.8,2026.1,5.70164]
[1742394625466,8.58,2026.8,2026.6,4.93417]
[1742394625664,8.579,2026.8,2026.7,4.93412]
[1742394626123,8.579,2026.8,2026.6,4.93417]
[1742394626323,3.0,2026.7,2026.2,4.93533]
[1742394626547,3.0,2026.7,2026.0,5.1319886]
[1742394626548,0.89128025,2026.6,2026.0,10.0676886]
[1742394626728,3.0,2026.4,2026.1,4.93556]
[1742394626932,5.579,2026.3,2026.1,4.93537]
[1742394627546,5.579,2026.3,2026.0,5.1320186]
[1742394627751,5.579,2026.3,2026.0,10.0676886]
[1742394627922,3.0,2026.2,2026.0,5.1319586]
[1742394628115,3.0,2026.2,2026.0,0.1962886]
[1742394628317,9.286904,2026.2,2026.0,0.1962886]
[1742394628546,8.74809,2026.1,2026.0,0.1962886]
[1742394628937,3.8125,2026.1,2026.0,0.1962886]
[1742394629136,3.8125,2026.1,2026.0,5.1321186]
[1742394629354,8.579,2026.1,2026.0,5.1321186]
[1742394629652,8.579,2026.1,2026.0,0.1962886]
[1742394629848,14.37249,2026.1,2026.0,0.1962886]
[1742394630152,15.72649,2026.1,2026.0,0.1962886]
[1742394630718,3.0,2025.2,2024.8,4.93851]
[1742394630925,3.0,2025.4,2024.6,4.93924]
[1742394631132,5.58,2025.3,2024.6,0.0487424]
[1742394631334,3.0,2025.2,2025.1,4.93802]
[1742394631530,8.579,2025.2,2025.1,4.93802]
[1742394632134,8.579,2025.2,2025.0,4.93819]
[1742394632456,7.93816,2025.1,2024.6,4.93908]
[1742394632656,0.7936,2025.0,2024.8,4.93872]
[1742394632826,3.0,2025.1,2024.8,4.93872]
[1742394633028,5.31971628,2025.1,2024.8,4.93872]
[1742394633353,8.581,2025.0,2024.9,4.93851]
[1742394633832,5.581,2025.0,2024.9,5.76551]
[1742394634031,4.74258284,2025.9,2025.1,4.93782]
[1742394634032,5.58,2025.6,2025.1,4.93782]
[1742394634242,5.58,2025.6,2024.9,0.827]
[1742394634436,0.00147696,2025.4,2025.1,4.93785]
[1742394634834,0.00147696,2025.4,2025.1,9.87571]
[1742394635143,0.00147696,2025.4,2025.1,4.93785]
[1742394635345,0.00147696,2025.4,2025.2,4.93768]
[1742394635546,0.00147696,2025.4,2025.1,4.938]
[1742394635855,3.7742,2025.3,2025.0,4.93816]
[1742394636056,5.581,2025.2,2024.9,4.93847]
[1742394636223,3.0,2025.1,2024.5,5.75092]
[1742394636431,3.0,2025.1,2024.9,4.93848]
[1742394636628,4.429284,2025.1,2024.9,4.93848]
[1742394637065,3.0,2025.1,2024.9,4.9383]
[1742394637437,4.9383,2024.9,2024.6,4.93904]
[1742394637737,8.581,2024.8,2024.6,4.93904]
[1742394637935,5.00013177,2025.0,2024.5,4.93948]
[1742394637936,3.0,2024.6,2024.5,4.93949]
[1742394638542,3.0,2024.6,2024.4,5.0288732]
[1742394638543,3.0,2024.9,2024.8,4.93874]
[1742394638858,0.7695,2025.0,2024.9,4.93851]
[1742394639055,17.83697696,2025.4,2025.1,4.93782]
[1742394639258,5.581,2025.3,2025.1,4.93782]
[1742394639460,3.0,2025.2,2025.1,4.93802]
[1742394639635,3.0,2025.2,2024.9,4.9384]
[1742394639845,3.0,2025.2,2025.0,4.93814]
[1742394640163,6.96e-06,2025.4,2024.9,4.93851]
[1742394640326,6.96e-06,2025.4,2025.3,5.73344]
[1742394640727,6.96e-06,2025.4,2025.3,4.93754]
[1742394640960,6.96e-06,2025.4,2025.1,4.93801]
[1742394641162,6.96e-06,2025.4,2025.3,4.93754]
[1742394641374,4.84063196,2025.5,2025.3,4.93754]
[1742394641573,3.0,2025.4,2025.1,4.93788]
[1742394641730,3.0,2025.4,2024.9,4.93843]
[1742394641929,3.0,2025.2,2024.9,4.93843]
[1742394642161,5.581,2025.1,2024.9,4.93843]
[1742394642363,3.0,2025.0,2024.8,4.93866]
[1742394642533,3.0,2025.0,2024.8,9.87725]
[1742394642735,3.0,2025.0,2024.8,4.93859]
[1742394642932,3.0,2025.0,2024.9,4.93851]
[1742394643131,5.581,2025.1,2025.0,4.93827]
[1742394643957,7.93827,2025.0,2024.5,5.73885]
[1742394644157,3.0,2025.0,2024.8,9.87715]
[1742394644364,3.0,2025.0,2024.7,4.93879]
[1742394644567,3.0,2025.0,2024.9,4.93851]
[1742394644729,3.0,2025.0,2024.7,4.93894]
[1742394644930,3.0,2024.8,2024.5,4.93938]
[1742394645259,3.0,2024.6,2024.5,4.9393]
[1742394646241,3.0,2024.6,2024.4,5.0290032]
[1742394646441,3.0,2024.6,2024.4,0.0893632]
[1742394646967,3.7593,2024.6,2024.4,0.0893632]
[1742394647467,3.0,2024.6,2024.5,4.93949]
[1742394647842,3.7593,2024.9,2024.7,4.93888]
[1742394648046,5.582,2024.8,2024.7,4.93888]
[1742394648364,6.784411,2024.7,2024.6,4.93924]
[1742394648564,3.0,2024.7,2024.6,4.93924]
[1742394649069,3.0,2024.7,2024.5,4.93942]
[1742394649268,3.0,2024.7,2024.5,4.93933]
[1742394649435,3.0,2024.7,2024.6,4.93924]
[1742394649634,5.121763,2024.7,2024.4,5.0290432]
[1742394649835,3.7697,2024.7,2024.6,4.93924]
[1742394650068,3.7697,2024.7,2024.4,0.0893632]
[1742394650772,3.7697,2024.7,2024.5,4.93937]
[1742394650937,5.31856672,2025.0,2024.6,4.93915]
[1742394650938,4.13568672,2025.0,2024.6,4.93915]
[1742394651268,3.0,2024.8,2024.4,5.0290132]
[1742394651460,7.9388,2024.8,2024.4,5.0289632]
[1742394651656,7.9388,2024.8,2024.7,4.939]
[1742394651657,3.0,2024.8,2024.7,4.939]
[1742394652086,1.13568672,2025.0,2024.7,4.939]
[1742394652254,5.582,2024.9,2024.7,4.939]
[1742394652442,22.00865,2025.3,2024.9,4.93837]
[1742394652644,8.582,2025.2,2025.0,4.93812]
[1742394652843,8.582,2025.2,2024.9,4.93848]
[1742394653473,8.582,2025.2,2024.9,4.9384]
[1742394653771,8.582,2025.2,2024.8,4.93858]
[1742394653976,4.93812,2025.1,2024.7,4.93887]
[1742394654272,3.0,2024.8,2024.4,5.0290632]
[1742394654574,5.581,2024.7,2024.5,9.87868]
[1742394654741,5.581,2024.7,2024.5,4.93931]
[1742394654943,8.581,2024.7,2024.6,4.93924]
[1742394655243,8.581,2024.7,2024.4,0.0893632]
[1742394655244,3.0,2024.6,2024.4,9.9684932]
[1742394655640,5.581,2024.7,2024.6,4.93924]
[1742394655641,8.581,2024.7,2024.6,4.93924]
[1742394655845,8.581,2024.7,2024.5,4.93935]
[1742394656343,8.581,2024.7,2024.6,4.93924]
[1742394656776,5.581,2024.7,2024.6,4.93924]
[1742394658962,5.581,2024.7,2024.5,4.93935]
[1742394659270,5.581,2024.7,2024.5,4.93937]
[1742394659464,3.0,2024.6,2024.5,4.93937]
[1742394659646,5.581,2024.7,2024.4,0.0893632]
[1742394659844,3.0,2024.6,2024.4,5.0289332]
[1742394660048,3.0,2024.6,2024.4,0.0893632]
[1742394660276,10.587213,2024.5,2024.4,0.0893632]
[1742394660678,11.137213,2024.5,2024.4,0.0893632]
[1742394660868,5.74251,2024.0,2023.9,0.1225524]
[1742394661068,14.32351,2024.0,2023.9,0.1225524]
[1742394661261,14.32351,2024.0,2023.9,2.4e-06]
[1742394661262,19.61609284,2024.0,2023.9,2.4e-06]
[1742394661568,3.0,2023.1,2022.6,4.94411]
[1742394661768,5.581,2023.4,2022.4,0.8312]
[1742394661965,8.08944554,2024.0,2022.2,5.94996687]
[1742394661966,5.581,2023.8,2023.7,4.94144]
[1742394662179,8.581,2023.8,2023.7,4.94144]
[1742394662395,8.581,2023.8,2023.6,4.94153]
[1742394662596,8.581,2023.8,2023.6,4.94168]
[1742394662597,3.0,2023.7,2023.6,4.94168]
[1742394662750,0.754,2024.1,2023.8,4.94119]
[1742394662951,0.7637,2024.4,2024.0,4.94071]
[1742394663175,6.3457,2024.8,2024.4,4.93961]
[1742394663385,6.067584,2024.7,2024.3,4.93983]
[1742394663568,6.067584,2024.7,2024.0,4.94069]
[1742394663569,4.128444,2024.7,2024.0,4.94069]
[1742394663779,1.128444,2024.7,2023.9,4.94074]
[1742394663974,8.582,2024.6,2024.5,4.93935]
[1742394664173,6.66613288,2024.6,2024.5,4.93935]
[1742394664374,6.66613288,2024.6,2024.4,4.93957]
[1742394664375,5.582,2024.6,2024.4,4.93957]
[1742394664581,3.0,2024.5,2024.4,4.93957]
[1742394665181,3.7637,2024.8,2024.5,4.93938]
[1742394665493,4.93665,2025.7,2025.3,4.93737]
[1742394665695,1.0661,2025.6,2025.3,4.93737]
[1742394665879,1.0661,2025.6,2025.4,4.93707]
[1742394666079,0.788,2025.8,2024.8,0.7955]
[1742394666080,5.582,2025.5,2025.3,4.93744]
[1742394666281,5.582,2025.4,2025.2,4.93769]
[1742394666598,5.582,2025.4,2025.3,4.93754]
[1742394666769,5.582,2025.4,2025.2,4.93765]
[1742394667093,5.582,2025.4,2025.3,4.93754]
[1742394667595,0.788,2025.8,2025.6,4.9367]
[1742394667794,4.9367,2025.6,2025.4,4.93727]
[1742394667998,0.06171315,2025.5,2023.9,4.74258284]
[1742394668200,3.0,2024.9,2024.6,9.87821]
[1742394668369,5.582,2024.8,2024.7,4.93898]
[1742394668799,5.522,2024.8,2024.7,4.93898]
[1742394669108,4.74258284,2025.6,2024.7,4.93898]
[1742394669109,5.582,2025.2,2024.9,4.93851]
[1742394669394,5.581,2025.3,2025.2,4.93769]
[1742394669605,8.581,2025.3,2025.1,4.93797]
[1742394669794,9.4391,2025.3,2025.0,4.93825]
[1742394670103,3.0,2024.9,2024.5,4.93944]
[1742394670307,5.581,2024.8,2024.4,4.9397]
[1742394670600,3.0,2024.7,2024.6,4.93924]
[1742394670894,7.939,2024.7,2024.4,4.93972]
[1742394671095,3.0,2024.7,2023.9,0.7619]
[1742394671294,0.7852,2024.5,2024.4,4.93973]
[1742394671602,3.0,2024.7,2024.5,4.93948]
[1742394671897,5.581,2024.8,2024.7,4.939]
[1742394672096,0.7539,2025.4,2025.3,4.93754]
[1742394672296,10.51854,2025.3,2024.5,0.799]
[1742394672595,0.7539,2025.4,2025.1,4.93786]
[1742394672797,0.7539,2025.4,2024.6,4.93924]
[1742394672798,4.93754,2025.3,2024.9,4.9384]
[1742394673273,5.69122,2025.4,2024.8,4.93863]
[1742394673466,8.506691,2025.3,2024.5,0.799]
[1742394673671,8.581,2025.2,2025.1,4.93802]
[1742394673896,3.0,2025.2,2025.1,4.93802]
[1742394674099,8.581,2025.2,2025.1,4.93802]
[1742394674299,5.58,2025.5,2025.4,4.93729]
[1742394674615,0.37468995,2025.6,2025.5,4.93705]
[1742394674970,0.7534,2026.0,2025.7,4.93633]
[1742394675277,6.412,2026.4,2026.2,4.93525]
[1742394675478,6.412,2026.4,2026.2,4.93523]
[1742394675479,0.832,2026.4,2026.2,4.93523]
[1742394675693,5.58,2026.5,2026.3,4.93499]
[1742394675894,5.58,2026.5,2026.1,4.93547]
[1742394676071,5.51858284,2026.8,2026.4,4.93485]
[1742394676403,5.58,2026.7,2026.5,4.93455]
[1742394676601,5.58,2026.7,2026.6,4.93437]
[1742394677303,5.579,2027.2,2026.9,4.93355]
[1742394677484,3.0,2026.8,2026.7,4.93396]
[1742394677803,4.127364,2027.1,2026.4,0.7985]
[1742394678009,1.127364,2027.1,2026.6,4.93413]
[1742394678201,1.49013486,2027.1,2026.4,4.93473]
[1742394678397,4.93383,2026.9,2026.4,4.93473]
[1742394678601,3.0,2026.7,2026.6,4.93426]
[1742394678801,0.7618,2027.3,2027.1,4.93303]
[1742394679001,0.8233,2027.6,2026.8,4.93383]
[1742394679225,9.8636,2027.7,2027.2,5.70992]
[1742394679509,4.93179,2027.7,2027.2,5.71001]
[1742394679678,10.57268874,2027.6,2027.1,4.93304]
[1742394679884,5.73701,2027.5,2027.0,4.9333]
[1742394680110,1.131601,2027.4,2027.3,4.93266]
[1742394680276,5.579,2027.6,2027.5,4.93218]
[1742394680612,5.579,2028.0,2027.7,4.93159]
[1742394680810,4.93159,2027.7,2027.6,4.93182]
[1742394681009,5.579,2028.0,2027.5,4.93218]
[1742394681214,1.132483,2027.9,2027.5,4.93207]
[1742394681391,1.132483,2027.9,2027.7,4.93151]
[1742394681593,5.577,2027.9,2027.7,4.93151]
[1742394681791,0.815,2028.1,2027.8,4.93139]
[1742394682005,5.577,2028.0,2027.7,9.86307]
[1742394682317,10.50808,2028.0,2027.5,4.93196]
[1742394682513,5.577,2028.0,2027.8,4.93143]
[1742394682730,5.577,2028.0,2027.7,4.93165]
[1742394682890,5.577,2028.0,2027.5,4.93195]
[1742394682891,5.577,2028.0,2027.6,4.9319]
[1742394683215,4.93146,2027.8,2027.4,4.93232]
[1742394683584,5.577,2028.0,2027.6,4.93171]
[1742394683780,1.132286,2027.9,2027.8,4.93145]
[1742394683985,5.577,2028.0,2027.9,4.9312]
[1742394684747,5.577,2028.0,2027.7,4.93154]
[1742394684948,5.577,2028.0,2027.9,4.9312]
[1742394685151,5.577,2028.0,2027.7,4.93164]
[1742394685307,5.577,2028.0,2027.6,0.7811]
[1742394685643,4.93146,2027.8,2027.4,4.93238]
[1742394685852,4.93149,2027.8,2027.4,4.9322]
[1742394686015,0.7885,2027.8,2027.2,4.93271]
[1742394686223,4.93169,2027.7,2027.3,4.93263]
[1742394686420,16.010189,2027.6,2027.1,4.933]
[1742394686650,10.50605,2027.6,2027.1,4.93298]
[1742394686861,10.50605,2027.6,2027.1,4.93311]
[1742394687022,5.574,2027.6,2027.3,4.93255]
[1742394687220,4.93256,2027.4,2027.0,4.9332]
[1742394687460,4.93256,2027.4,2027.0,4.93335]
[1742394687667,5.982749,2027.5,2027.1,4.93307]
[1742394687833,8.72001,2027.8,2026.9,4.93362]
[1742394687834,0.7885,2027.8,2027.5,4.93194]
[1742394688039,0.7664,2028.1,2027.9,4.93109]
[1742394688255,5.69713,2028.1,2027.7,4.93164]
[1742394688622,0.7664,2028.1,2027.5,4.93201]
[1742394688818,0.55,2028.0,2027.3,4.93255]
[1742394689051,4.93225,2027.5,2027.1,4.93297]
[1742394689329,3.0,2027.3,2026.7,0.7787]
[1742394689549,3.0,2027.3,2026.9,4.93341]
[1742394689753,3.0,2027.3,2027.1,4.93301]
[1742394689952,3.0,2027.3,2027.0,9.86668]
[1742394690129,3.0,2027.3,2027.2,4.93291]
[1742394690461,3.0,2027.3,2026.8,4.93369]
[1742394690650,3.0,2027.3,2026.8,4.93381]
[1742394690651,3.94003,2027.3,2026.8,4.93381]
[1742394690855,8.87273,2027.3,2026.8,4.93378]
[1742394691164,8.87273,2027.3,2026.7,5.71282]
[1742394691457,3.0,2027.1,2026.4,0.8271]
[1742394691624,7.93305,2027.2,2026.6,4.9342]
[1742394691825,4.93325,2027.1,2026.6,4.9342]
[1742394692020,0.06166747,2027.1,2026.6,4.9342]
[1742394692251,1.444668,2027.2,2026.8,4.93378]
[1742394692450,1.444668,2027.2,2026.8,4.93372]
[1742394692749,1.444668,2027.2,2026.9,4.93363]
[1742394693155,3.94003,2027.3,2026.8,4.9337]
[1742394693322,7.93293,2027.2,2026.7,4.93405]
[1742394693526,7.93405,2026.7,2026.2,4.93518]
[1742394693728,6.8598,2026.6,2026.2,4.93518]
[1742394693949,5.573,2026.6,2026.1,0.7757]
[1742394694253,0.832,2027.1,2026.2,0.04865861]
[1742394694429,3.0,2026.9,2026.7,4.93412]
[1742394694624,5.573,2027.0,2026.9,4.93364]
[1742394694829,7.9326,2027.4,2026.7,5.7517]
[1742394695028,3.0,2027.2,2026.8,4.93377]
[1742394695260,3.0,2027.2,2026.7,0.8178]
[1742394695427,5.573,2027.3,2027.1,4.933]
[1742394695630,8.573,2027.3,2027.2,4.93291]
[1742394696066,8.573,2027.3,2027.1,4.93302]
[1742394696374,5.573,2027.3,2027.2,4.93291]
[1742394696572,22.75363,2027.8,2026.7,0.8178]
[1742394696573,5.573,2027.7,2027.4,4.93232]
[1742394696769,5.573,2027.7,2027.4,4.93229]
[1742394697072,0.7902,2028.1,2027.3,4.93242]
[1742394697271,5.573,2027.8,2027.4,4.93222]
[1742394697441,5.573,2027.8,2027.5,4.93214]
[1742394697776,3.0,2027.7,2027.6,4.93193]
[1742394698000,5.573,2027.8,2027.7,4.93169]
[1742394698141,2.780926,2027.7,2027.4,4.93223]
[1742394698343,5.573,2027.8,2027.5,4.93205]
[1742394698733,5.573,2027.8,2027.4,4.93239]
[1742394699078,7.93184,2027.7,2027.2,4.93288]
[1742394699262,4.93205,2027.6,2027.1,9.86618]
[1742394699581,3.0,2027.3,2026.9,4.93356]
[1742394699728,3.0,2027.1,2026.9,4.93356]
[1742394699924,3.0,2027.1,2026.8,4.93388]
[1742394700130,9.283809,2027.1,2026.7,4.93409]
[1742394700434,4.93381,2026.9,2026.4,4.93472]
[1742394700663,3.0,2026.7,2026.3,4.93504]
[1742394700858,3.0,2026.7,2026.4,4.93476]
[1742394701063,7.93415,2026.7,2026.3,4.93504]
[1742394701249,7.93415,2026.7,2026.1,4.93558]
[1742394701250,4.350715,2026.7,2026.0,0.7722]
[1742394701563,3.8078,2026.6,2026.4,4.93473]
[1742394701733,3.0,2026.6,2026.4,4.93473]
[1742394701940,5.573,2026.8,2026.4,0.04865697]
[1742394702137,3.0,2027.0,2026.3,4.9351]
[1742394702340,8.573,2027.0,2026.8,4.93377]
[1742394702867,8.573,2027.0,2026.7,4.93411]